[Event "*** SCC Grand Prix: Titled Tuesday Blitz"]
[Site "Chess.com"]
[Date "2020.07.21"]
[Round "2"]
[White "OrtizAnahi2001"]
[Black "CaspiIsrael"]
[Result "0-1"]
[WhiteElo "2273"]
[BlackElo "2621"]
[TimeControl "180+1"]
[EndTime "10:15:38 PDT"]
[Termination "CaspiIsrael won by resignation"]

1. d4 {[%clk 0:03:00.9]} 1... Nf6 {[%clk 0:02:57]} 2. c4 {[%clk 0:02:57.5]} 2...
e6 {[%clk 0:02:56.9]} 3. Nc3 {[%clk 0:02:56.8]} 3... Bb4 {[%clk 0:02:56.8]} 4.
e3 {[%clk 0:02:54.1]} 4... O-O {[%clk 0:02:56.2]} 5. a3 {[%clk 0:02:53.6]} 5...
Bxc3+ {[%clk 0:02:51.1]} 6. bxc3 {[%clk 0:02:53.4]} 6... Nc6 {[%clk 0:02:39.9]}
7. Bd3 {[%clk 0:02:52]} 7... b6 {[%clk 0:02:39.8]} 8. Ne2 {[%clk 0:02:49.4]}
8... Ba6 {[%clk 0:02:39]} 9. O-O {[%clk 0:02:46.3]} 9... Na5 {[%clk 0:02:38.8]}
10. c5 {[%clk 0:02:26.9]} 10... Bxd3 {[%clk 0:02:29.3]} 11. Qxd3 {[%clk
0:02:26.4]} 11... bxc5 {[%clk 0:02:29.9]} 12. dxc5 {[%clk 0:02:25.2]} 12... Nb3
{[%clk 0:02:29.6]} 13. Rb1 {[%clk 0:02:22.7]} 13... Nxc5 {[%clk 0:02:29.4]} 14.
Qc4 {[%clk 0:02:22.9]} 14... d6 {[%clk 0:02:26.7]} 15. a4 {[%clk 0:02:22.6]}
15... Qd7 {[%clk 0:02:26.3]} 16. a5 {[%clk 0:02:17.8]} 16... Rfb8 {[%clk
0:02:09.3]} 17. Ba3 {[%clk 0:02:17.3]} 17... Qa4 {[%clk 0:02:09]} 18. Qxa4
{[%clk 0:01:59.7]} 18... Nxa4 {[%clk 0:02:09.9]} 19. c4 {[%clk 0:01:52.7]} 19...
Ne4 {[%clk 0:02:06.3]} 20. Rb4 {[%clk 0:01:45.1]} 20... Rxb4 {[%clk 0:02:04.8]}
21. Bxb4 {[%clk 0:01:44.8]} 21... Rb8 {[%clk 0:02:05.3]} 22. Ba3 {[%clk
0:01:36.6]} 22... Rb3 {[%clk 0:02:01.5]} 23. Bc1 {[%clk 0:01:36.4]} 23... c5
{[%clk 0:01:59.2]} 24. Rd1 {[%clk 0:01:35.5]} 24... Kf8 {[%clk 0:01:47.7]} 25.
Kf1 {[%clk 0:01:24]} 25... Rb1 {[%clk 0:01:43.1]} 26. Re1 {[%clk 0:01:14]} 26...
Ke7 {[%clk 0:01:39.9]} 27. f3 {[%clk 0:01:13.9]} 27... Nf6 {[%clk 0:01:32.4]}
28. e4 {[%clk 0:01:08.7]} 28... Rb4 {[%clk 0:01:30.4]} 29. Bf4 {[%clk
0:01:06.1]} 29... e5 {[%clk 0:01:29.3]} 30. Bg5 {[%clk 0:01:05.2]} 30... Rxc4
{[%clk 0:01:28.4]} 31. Rd1 {[%clk 0:01:04.6]} 31... a6 {[%clk 0:01:23]} 32. Kf2
{[%clk 0:00:56]} 32... Rc2 {[%clk 0:01:21.1]} 33. Rb1 {[%clk 0:00:55.3]} 33...
Rxe2+ {[%clk 0:01:20.5]} 34. Kf1 {[%clk 0:00:54]} 34... Rb2 {[%clk 0:01:18.6]}
0-1

[Event "*** SCC Grand Prix: Titled Tuesday Blitz"]
[Site "Chess.com"]
[Date "2020.07.21"]
[Round "2"]
[White "XDPS"]
[Black "Logman74"]
[Result "1-0"]
[WhiteElo "2725"]
[BlackElo "2326"]
[TimeControl "180+1"]
[EndTime "10:15:43 PDT"]
[Termination "XDPS won on time"]

1. e4 {[%clk 0:03:00.9]} 1... c5 {[%clk 0:02:44.2]} 2. Nf3 {[%clk 0:02:59.6]}
2... d6 {[%clk 0:02:43.3]} 3. d4 {[%clk 0:02:59.1]} 3... cxd4 {[%clk 0:02:43.7]}
4. Nxd4 {[%clk 0:02:58.5]} 4... Nf6 {[%clk 0:02:44.2]} 5. Nc3 {[%clk 0:02:57.3]}
5... Nc6 {[%clk 0:02:44.6]} 6. Be2 {[%clk 0:02:56.8]} 6... e5 {[%clk 0:02:42.6]}
7. Nf3 {[%clk 0:02:55.8]} 7... h6 {[%clk 0:02:42.5]} 8. h3 {[%clk 0:02:54.7]}
8... Be7 {[%clk 0:02:42.5]} 9. O-O {[%clk 0:02:53.4]} 9... O-O {[%clk
0:02:42.8]} 10. Re1 {[%clk 0:02:53.7]} 10... a6 {[%clk 0:02:42.3]} 11. a4 {[%clk
0:02:52.6]} 11... Qc7 {[%clk 0:02:42.2]} 12. Bf1 {[%clk 0:02:51.4]} 12... Be6
{[%clk 0:02:32.9]} 13. Nd5 {[%clk 0:02:50.8]} 13... Bxd5 {[%clk 0:02:32.3]} 14.
exd5 {[%clk 0:02:50.6]} 14... Nb4 {[%clk 0:02:31.8]} 15. c4 {[%clk 0:02:49.6]}
15... a5 {[%clk 0:02:31.3]} 16. Ra3 {[%clk 0:02:46]} 16... Nd7 {[%clk
0:02:30.1]} 17. Nd4 {[%clk 0:02:44.2]} 17... exd4 {[%clk 0:02:23.6]} 18. Rxe7
{[%clk 0:02:43.3]} 18... Qd8 {[%clk 0:02:23.5]} 19. Re1 {[%clk 0:02:38.9]} 19...
Nc5 {[%clk 0:02:23]} 20. Rg3 {[%clk 0:02:33.9]} 20... Kh8 {[%clk 0:02:19.9]} 21.
Qxd4 {[%clk 0:02:33]} 21... f6 {[%clk 0:02:14.9]} 22. Bxh6 {[%clk 0:02:11.6]}
22... gxh6 {[%clk 0:02:09]} 23. Qh4 {[%clk 0:02:11.6]} 23... Qd7 {[%clk
0:01:48.9]} 24. Rg6 {[%clk 0:02:07.5]} 24... Rf7 {[%clk 0:01:31.2]} 25. Rxh6+
{[%clk 0:02:03.5]} 25... Rh7 {[%clk 0:01:04.6]} 26. Qxf6+ {[%clk 0:02:01.4]}
26... Qg7 {[%clk 0:01:00.8]} 27. Rxh7+ {[%clk 0:02:01.2]} 27... Kxh7 {[%clk
0:01:00.2]} 28. Re7 {[%clk 0:02:01.8]} 28... Rg8 {[%clk 0:00:58.2]} 29. Qxd6
{[%clk 0:01:53.4]} 1-0

[Event "*** SCC Grand Prix: Titled Tuesday Blitz"]
[Site "Chess.com"]
[Date "2020.07.21"]
[Round "2"]
[White "sergeikim"]
[Black "dosto07"]
[Result "1-0"]
[WhiteElo "2449"]
[BlackElo "2232"]
[TimeControl "180+1"]
[EndTime "10:15:46 PDT"]
[Termination "sergeikim won by resignation"]

1. d4 {[%clk 0:03:00.9]} 1... d5 {[%clk 0:02:59.4]} 2. c4 {[%clk 0:03:00.6]}
2... dxc4 {[%clk 0:02:59.3]} 3. e3 {[%clk 0:03:00.1]} 3... Nf6 {[%clk
0:02:58.3]} 4. Bxc4 {[%clk 0:02:59.6]} 4... e6 {[%clk 0:02:58.7]} 5. Nf3 {[%clk
0:02:59.3]} 5... a6 {[%clk 0:02:59.2]} 6. a4 {[%clk 0:02:58.1]} 6... c5 {[%clk
0:02:58.6]} 7. O-O {[%clk 0:02:57.4]} 7... Nc6 {[%clk 0:02:59]} 8. Qe2 {[%clk
0:02:57.4]} 8... Be7 {[%clk 0:02:57.7]} 9. Rd1 {[%clk 0:02:57.1]} 9... O-O
{[%clk 0:02:56.5]} 10. Nc3 {[%clk 0:02:51.3]} 10... Qc7 {[%clk 0:02:54.5]} 11.
h3 {[%clk 0:02:40.7]} 11... b6 {[%clk 0:02:52.9]} 12. d5 {[%clk 0:02:35.1]}
12... exd5 {[%clk 0:02:51.3]} 13. Nxd5 {[%clk 0:02:36]} 13... Nxd5 {[%clk
0:02:51.3]} 14. Bxd5 {[%clk 0:02:36.9]} 14... Bb7 {[%clk 0:02:49.8]} 15. e4
{[%clk 0:02:36.4]} 15... Rad8 {[%clk 0:02:41.9]} 16. Be3 {[%clk 0:02:30.2]}
16... a5 {[%clk 0:02:25.2]} 17. Qc4 {[%clk 0:02:20.5]} 17... Bf6 {[%clk
0:02:20.1]} 18. Rd2 {[%clk 0:02:16.1]} 18... Rfe8 {[%clk 0:02:02.4]} 19. Rad1
{[%clk 0:02:13.8]} 19... h6 {[%clk 0:01:35.5]} 20. e5 {[%clk 0:01:56.9]} 20...
Nxe5 {[%clk 0:01:17.9]} 21. Nxe5 {[%clk 0:01:56.7]} 21... Bxe5 {[%clk
0:01:09.2]} 22. Bxf7+ {[%clk 0:01:52.6]} 22... Kh8 {[%clk 0:01:03]} 23. Bxe8
{[%clk 0:01:50.2]} 23... Rxe8 {[%clk 0:01:01.5]} 24. Qg4 {[%clk 0:01:35.5]}
24... Qc6 {[%clk 0:00:56]} 25. Rd8 {[%clk 0:01:32.1]} 25... Bf6 {[%clk
0:00:48.8]} 26. Rxe8+ {[%clk 0:01:28.5]} 26... Qxe8 {[%clk 0:00:48.4]} 27. b3
{[%clk 0:01:19.6]} 27... Qf7 {[%clk 0:00:39.5]} 28. Rd7 {[%clk 0:01:15.1]} 28...
Bc8 {[%clk 0:00:36.6]} 29. Rxf7 {[%clk 0:01:14.2]} 1-0

[Event "*** SCC Grand Prix: Titled Tuesday Blitz"]
[Site "Chess.com"]
[Date "2020.07.21"]
[Round "2"]
[White "ChelsieMonica"]
[Black "cassoulet"]
[Result "0-1"]
[WhiteElo "2403"]
[BlackElo "2656"]
[TimeControl "180+1"]
[EndTime "10:15:51 PDT"]
[Termination "cassoulet won by resignation"]

1. c4 {[%clk 0:03:00.9]} 1... e6 {[%clk 0:02:59.6]} 2. Nc3 {[%clk 0:03:00.6]}
2... Nf6 {[%clk 0:03:00.2]} 3. Nf3 {[%clk 0:03:00.4]} 3... d5 {[%clk 0:02:59.9]}
4. cxd5 {[%clk 0:03:01.3]} 4... exd5 {[%clk 0:02:59.9]} 5. d3 {[%clk 0:03:01.9]}
5... c6 {[%clk 0:02:59.5]} 6. g3 {[%clk 0:03:02.4]} 6... Bd6 {[%clk 0:03:00.1]}
7. Bg2 {[%clk 0:03:02.8]} 7... O-O {[%clk 0:03:00.7]} 8. O-O {[%clk 0:03:03.5]}
8... Bg4 {[%clk 0:03:01.1]} 9. Bg5 {[%clk 0:03:03.7]} 9... Nbd7 {[%clk
0:03:00.5]} 10. h3 {[%clk 0:03:03.4]} 10... Bf5 {[%clk 0:02:58.8]} 11. Nd4
{[%clk 0:03:02.4]} 11... Bg6 {[%clk 0:02:58.7]} 12. f4 {[%clk 0:03:00.7]} 12...
h6 {[%clk 0:02:53.2]} 13. Bxf6 {[%clk 0:03:00.1]} 13... Nxf6 {[%clk 0:02:54]}
14. f5 {[%clk 0:02:59.8]} 14... Bh7 {[%clk 0:02:53.7]} 15. g4 {[%clk 0:03:00.2]}
15... Re8 {[%clk 0:02:53.8]} 16. e4 {[%clk 0:02:59.3]} 16... Qb6 {[%clk
0:02:49]} 17. Ne2 {[%clk 0:02:57.6]} 17... dxe4 {[%clk 0:02:41]} 18. Kh1 {[%clk
0:02:56.2]} 18... exd3 {[%clk 0:02:35.3]} 19. Qxd3 {[%clk 0:02:57.1]} 19... Rad8
{[%clk 0:02:35.5]} 20. Rad1 {[%clk 0:02:56.3]} 20... Be5 {[%clk 0:02:31.9]} 21.
Qc4 {[%clk 0:02:54.6]} 21... Qxb2 {[%clk 0:02:25.5]} 22. Rb1 {[%clk 0:02:51.2]}
22... Rxd4 {[%clk 0:02:17.1]} 23. Nxd4 {[%clk 0:02:41.9]} 23... Qxd4 {[%clk
0:02:18]} 24. Qxd4 {[%clk 0:02:40.3]} 24... Bxd4 {[%clk 0:02:18.9]} 25. Rxb7
{[%clk 0:02:40.6]} 25... h5 {[%clk 0:02:13.1]} 26. Bxc6 {[%clk 0:02:36.1]} 26...
Rc8 {[%clk 0:02:11.2]} 27. g5 {[%clk 0:02:34.6]} 27... Ne8 {[%clk 0:02:03.9]}
28. Bd5 {[%clk 0:02:16.6]} 28... Nd6 {[%clk 0:02:03.3]} 29. Rd7 {[%clk
0:01:42.2]} 29... Nxf5 {[%clk 0:02:00.3]} 30. Bxf7+ {[%clk 0:01:40.4]} 30... Kh8
{[%clk 0:02:00.1]} 31. g6 {[%clk 0:01:40.7]} 31... Ng3+ {[%clk 0:01:57.7]} 32.
Kg2 {[%clk 0:01:36.1]} 32... Nxf1 {[%clk 0:01:58.6]} 33. Kxf1 {[%clk 0:01:10.5]}
33... Rf8 {[%clk 0:01:47.8]} 34. gxh7 {[%clk 0:01:05.9]} 34... Kxh7 {[%clk
0:01:42.4]} 35. Kg2 {[%clk 0:00:59.4]} 35... Bb6 {[%clk 0:01:39.8]} 36. h4
{[%clk 0:00:57.6]} 36... g6 {[%clk 0:01:32.3]} 37. Kg3 {[%clk 0:00:57.1]} 37...
Kh6 {[%clk 0:01:32.1]} 38. a4 {[%clk 0:00:54.4]} 38... Rc8 {[%clk 0:01:22.7]}
39. Rd6 {[%clk 0:00:51.7]} 39... Bc7 {[%clk 0:01:22.5]} 0-1

[Event "*** SCC Grand Prix: Titled Tuesday Blitz"]
[Site "Chess.com"]
[Date "2020.07.21"]
[Round "2"]
[White "doctorcristian"]
[Black "Vandros57"]
[Result "1-0"]
[WhiteElo "2404"]
[BlackElo "2119"]
[TimeControl "180+1"]
[EndTime "10:15:51 PDT"]
[Termination "doctorcristian won on time"]

1. d4 {[%clk 0:02:43.4]} 1... d5 {[%clk 0:02:58.7]} 2. c4 {[%clk 0:02:39.9]}
2... e6 {[%clk 0:02:58.2]} 3. Nc3 {[%clk 0:02:39.6]} 3... Nf6 {[%clk 0:02:57.8]}
4. Nf3 {[%clk 0:02:37.5]} 4... Nbd7 {[%clk 0:02:56.8]} 5. cxd5 {[%clk
0:02:37.4]} 5... exd5 {[%clk 0:02:54.8]} 6. Bf4 {[%clk 0:02:37.9]} 6... c6
{[%clk 0:02:50.1]} 7. e3 {[%clk 0:02:38.2]} 7... Nh5 {[%clk 0:02:45.9]} 8. Bg5
{[%clk 0:02:34.4]} 8... Be7 {[%clk 0:02:41]} 9. h4 {[%clk 0:02:34]} 9... h6
{[%clk 0:02:38]} 10. g4 {[%clk 0:02:33.9]} 10... hxg5 {[%clk 0:02:28.4]} 11.
hxg5 {[%clk 0:02:32.9]} 11... Bxg5 {[%clk 0:02:16.5]} 12. gxh5 {[%clk
0:02:17.2]} 12... Bh6 {[%clk 0:02:07.5]} 13. Bd3 {[%clk 0:02:11]} 13... Qe7
{[%clk 0:02:01.5]} 14. Qe2 {[%clk 0:02:02.3]} 14... b5 {[%clk 0:01:53.2]} 15.
O-O-O {[%clk 0:02:00.4]} 15... b4 {[%clk 0:01:39]} 16. Na4 {[%clk 0:01:59.9]}
16... Bb7 {[%clk 0:01:36.9]} 17. Kb1 {[%clk 0:01:59.4]} 17... O-O {[%clk
0:01:28.9]} 18. Nh4 {[%clk 0:01:51.2]} 18... Nb6 {[%clk 0:00:58]} 19. Nc5 {[%clk
0:01:49.4]} 19... Rab8 {[%clk 0:00:50.4]} 20. Nf5 {[%clk 0:01:47.8]} 20... Qf6
{[%clk 0:00:50.1]} 21. Rdg1 {[%clk 0:01:46.4]} 21... Nc4 {[%clk 0:00:48.5]} 22.
Nxg7 {[%clk 0:01:39.1]} 22... Bxg7 {[%clk 0:00:46.3]} 23. h6 {[%clk 0:01:39.4]}
23... Na3+ {[%clk 0:00:04.5]} 24. bxa3 {[%clk 0:01:31.5]} 1-0

[Event "*** SCC Grand Prix: Titled Tuesday Blitz"]
[Site "Chess.com"]
[Date "2020.07.21"]
[Round "2"]
[White "bgfbfbgfbgfgf"]
[Black "Chessdemon2019"]
[Result "0-1"]
[WhiteElo "2626"]
[BlackElo "2363"]
[TimeControl "180+1"]
[EndTime "10:15:57 PDT"]
[Termination "Chessdemon2019 won by resignation"]

1. e4 {[%clk 0:03:00.9]} 1... c5 {[%clk 0:02:59]} 2. Nf3 {[%clk 0:03:00.9]} 2...
d6 {[%clk 0:02:58.7]} 3. d4 {[%clk 0:03:01.1]} 3... cxd4 {[%clk 0:02:59.6]} 4.
Nxd4 {[%clk 0:03:02]} 4... Nf6 {[%clk 0:02:59.9]} 5. Nc3 {[%clk 0:03:02.4]} 5...
a6 {[%clk 0:03:00.6]} 6. Be3 {[%clk 0:03:00.1]} 6... e5 {[%clk 0:03:00.7]} 7.
Nb3 {[%clk 0:03:00.2]} 7... Be6 {[%clk 0:03:00.9]} 8. f3 {[%clk 0:03:00.1]} 8...
Be7 {[%clk 0:03:00.4]} 9. Qd2 {[%clk 0:02:58.7]} 9... h5 {[%clk 0:03:00.8]} 10.
Nd5 {[%clk 0:02:57.1]} 10... Nxd5 {[%clk 0:03:00.6]} 11. exd5 {[%clk 0:02:58]}
11... Bf5 {[%clk 0:03:01.3]} 12. Bd3 {[%clk 0:02:57.4]} 12... Bxd3 {[%clk
0:03:00.8]} 13. Qxd3 {[%clk 0:02:58.3]} 13... Nd7 {[%clk 0:03:01.3]} 14. O-O-O
{[%clk 0:02:54]} 14... Bg5 {[%clk 0:03:00.9]} 15. g3 {[%clk 0:02:50.8]} 15...
Bxe3+ {[%clk 0:02:57.7]} 16. Qxe3 {[%clk 0:02:51]} 16... Rc8 {[%clk 0:02:54]}
17. h4 {[%clk 0:02:36.9]} 17... Qc7 {[%clk 0:02:48.4]} 18. Rh2 {[%clk 0:02:35]}
18... Nf6 {[%clk 0:02:38]} 19. Qd3 {[%clk 0:01:44.3]} 19... O-O {[%clk
0:02:13.4]} 20. Nd2 {[%clk 0:01:25.8]} 20... Qe7 {[%clk 0:01:29.3]} 21. Kb1
{[%clk 0:01:22.9]} 21... b5 {[%clk 0:01:27.4]} 22. Ne4 {[%clk 0:01:17.2]} 22...
Nxe4 {[%clk 0:01:26.8]} 23. fxe4 {[%clk 0:01:18.1]} 23... Rc4 {[%clk 0:01:22.1]}
24. Rf2 {[%clk 0:01:17.3]} 24... Qd7 {[%clk 0:01:16.6]} 25. Rf5 {[%clk
0:01:13.1]} 25... g6 {[%clk 0:01:13]} 26. Rf6 {[%clk 0:01:13.7]} 26... Qg4
{[%clk 0:01:10.4]} 27. c3 {[%clk 0:01:05.8]} 27... Rxe4 {[%clk 0:00:52]} 28.
Rxd6 {[%clk 0:01:04.3]} 28... b4 {[%clk 0:00:52.3]} 29. cxb4 {[%clk 0:00:52.7]}
29... Rd4 {[%clk 0:00:51.3]} 0-1

[Event "*** SCC Grand Prix: Titled Tuesday Blitz"]
[Site "Chess.com"]
[Date "2020.07.21"]
[Round "2"]
[White "Roman_Ovetchkin"]
[Black "Bigfish1995"]
[Result "0-1"]
[WhiteElo "2598"]
[BlackElo "3021"]
[TimeControl "180+1"]
[EndTime "10:15:58 PDT"]
[Termination "Bigfish1995 won by resignation"]

1. d4 {[%clk 0:03:00.9]} 1... Nf6 {[%clk 0:02:57.4]} 2. c4 {[%clk 0:02:59.8]}
2... e6 {[%clk 0:02:57.6]} 3. Nf3 {[%clk 0:02:59.3]} 3... d5 {[%clk 0:02:56.5]}
4. g3 {[%clk 0:02:59.5]} 4... Bb4+ {[%clk 0:02:56.1]} 5. Bd2 {[%clk 0:02:58.9]}
5... Be7 {[%clk 0:02:56.2]} 6. Bg2 {[%clk 0:02:59]} 6... O-O {[%clk 0:02:56.4]}
7. O-O {[%clk 0:02:59.1]} 7... c6 {[%clk 0:02:56.6]} 8. Qc2 {[%clk 0:02:58.1]}
8... Nbd7 {[%clk 0:02:55.7]} 9. a3 {[%clk 0:02:19.3]} 9... a5 {[%clk 0:02:52.6]}
10. Rc1 {[%clk 0:02:06.4]} 10... b5 {[%clk 0:02:32.5]} 11. cxb5 {[%clk
0:01:25.8]} 11... cxb5 {[%clk 0:02:32.3]} 12. Qc6 {[%clk 0:01:23.4]} 12... Ba6
{[%clk 0:02:19.7]} 13. Bf4 {[%clk 0:01:13.6]} 13... Qc8 {[%clk 0:02:03.2]} 14.
Nbd2 {[%clk 0:01:07.7]} 14... Qxc6 {[%clk 0:01:42.5]} 15. Rxc6 {[%clk
0:01:06.1]} 15... b4 {[%clk 0:01:43.2]} 16. e3 {[%clk 0:01:02]} 16... Rfc8
{[%clk 0:01:37.3]} 17. Rxc8+ {[%clk 0:00:49]} 17... Rxc8 {[%clk 0:01:37.3]} 18.
axb4 {[%clk 0:00:43.7]} 18... Bxb4 {[%clk 0:01:37.3]} 19. Bf1 {[%clk 0:00:43.6]}
19... Bxf1 {[%clk 0:01:35.2]} 20. Kxf1 {[%clk 0:00:44.5]} 20... Rc2 {[%clk
0:01:32.7]} 21. Nb3 {[%clk 0:00:31.9]} 21... Ne4 {[%clk 0:01:32.6]} 22. Ne5
{[%clk 0:00:16]} 22... Nxe5 {[%clk 0:01:22.2]} 23. Bxe5 {[%clk 0:00:14.2]} 23...
Rxf2+ {[%clk 0:01:22.7]} 24. Kg1 {[%clk 0:00:14.4]} 24... f6 {[%clk 0:01:22.9]}
25. Bc7 {[%clk 0:00:12.6]} 25... Rxb2 {[%clk 0:01:22.9]} 26. Nxa5 {[%clk
0:00:12.1]} 26... Bd2 {[%clk 0:01:23.1]} 0-1

[Event "*** SCC Grand Prix: Titled Tuesday Blitz"]
[Site "Chess.com"]
[Date "2020.07.21"]
[Round "2"]
[White "Muracle"]
[Black "Falia-p"]
[Result "0-1"]
[WhiteElo "2610"]
[BlackElo "2319"]
[TimeControl "180+1"]
[EndTime "10:16:02 PDT"]
[Termination "Falia-p won by resignation"]

1. d4 {[%clk 0:02:40.9]} 1... Nf6 {[%clk 0:02:57.3]} 2. c4 {[%clk 0:02:40.9]}
2... e6 {[%clk 0:02:57]} 3. g3 {[%clk 0:02:40]} 3... d5 {[%clk 0:02:56.1]} 4.
Bg2 {[%clk 0:02:33]} 4... dxc4 {[%clk 0:02:54.5]} 5. Nf3 {[%clk 0:02:32.8]} 5...
a6 {[%clk 0:02:51.5]} 6. O-O {[%clk 0:02:31.9]} 6... Nc6 {[%clk 0:02:51.3]} 7.
Qc2 {[%clk 0:02:23.1]} 7... Nxd4 {[%clk 0:02:47.8]} 8. Qxc4 {[%clk 0:02:23.1]}
8... Nxf3+ {[%clk 0:02:39.6]} 9. Bxf3 {[%clk 0:02:24]} 9... Bd6 {[%clk
0:02:31.1]} 10. Nc3 {[%clk 0:02:23.4]} 10... O-O {[%clk 0:02:30]} 11. Rd1 {[%clk
0:02:23.3]} 11... Qe7 {[%clk 0:02:28.8]} 12. Bg5 {[%clk 0:02:23.1]} 12... h6
{[%clk 0:02:23.1]} 13. Be3 {[%clk 0:02:22.5]} 13... Rb8 {[%clk 0:02:15]} 14. a4
{[%clk 0:02:15.8]} 14... c6 {[%clk 0:02:00.1]} 15. a5 {[%clk 0:02:12.5]} 15...
e5 {[%clk 0:01:58.6]} 16. Bb6 {[%clk 0:02:05.8]} 16... Be6 {[%clk 0:01:55.5]}
17. Qh4 {[%clk 0:01:33.8]} 17... Bc7 {[%clk 0:01:42.2]} 18. Be3 {[%clk
0:01:23.3]} 18... Rfd8 {[%clk 0:01:32.8]} 19. Ne4 {[%clk 0:01:22.2]} 19... Rxd1+
{[%clk 0:01:22.4]} 20. Rxd1 {[%clk 0:01:21.2]} 20... Rd8 {[%clk 0:01:13]} 21.
Rc1 {[%clk 0:00:51.1]} 21... Nd5 {[%clk 0:01:04.6]} 22. Qxe7 {[%clk 0:00:48.3]}
22... Nxe7 {[%clk 0:01:05.5]} 23. Nc5 {[%clk 0:00:48.6]} 23... Bc8 {[%clk
0:01:01.7]} 24. b4 {[%clk 0:00:48.3]} 24... Nd5 {[%clk 0:00:57.2]} 25. Bxd5
{[%clk 0:00:47.7]} 25... Rxd5 {[%clk 0:00:57.1]} 26. h4 {[%clk 0:00:47.7]} 26...
f5 {[%clk 0:00:55.3]} 27. h5 {[%clk 0:00:45.4]} 27... f4 {[%clk 0:00:55.4]} 0-1

[Event "*** SCC Grand Prix: Titled Tuesday Blitz"]
[Site "Chess.com"]
[Date "2020.07.21"]
[Round "2"]
[White "51616516516"]
[Black "bmt011"]
[Result "1-0"]
[WhiteElo "2406"]
[BlackElo "2126"]
[TimeControl "180+1"]
[EndTime "10:16:03 PDT"]
[Termination "51616516516 won on time"]

1. c4 {[%clk 0:02:51.5]} 1... c5 {[%clk 0:02:53.2]} 2. Nf3 {[%clk 0:02:50.8]}
2... Nf6 {[%clk 0:02:53.2]} 3. d4 {[%clk 0:02:49.5]} 3... cxd4 {[%clk
0:02:51.9]} 4. Nxd4 {[%clk 0:02:50.4]} 4... g6 {[%clk 0:02:48.6]} 5. Nc3 {[%clk
0:02:46]} 5... Bg7 {[%clk 0:02:46.3]} 6. g3 {[%clk 0:02:46.4]} 6... d5 {[%clk
0:02:28.8]} 7. cxd5 {[%clk 0:02:45.9]} 7... Nxd5 {[%clk 0:02:27.5]} 8. Ndb5
{[%clk 0:02:46.1]} 8... Nxc3 {[%clk 0:02:23.4]} 9. Qxd8+ {[%clk 0:02:43.2]} 9...
Kxd8 {[%clk 0:02:23.1]} 10. Nxc3 {[%clk 0:02:43.6]} 10... Bd7 {[%clk 0:02:13.6]}
11. Bg2 {[%clk 0:02:42]} 11... Bc6 {[%clk 0:02:13.7]} 12. O-O {[%clk 0:02:42.5]}
12... Bxg2 {[%clk 0:02:12]} 13. Rd1+ {[%clk 0:02:41]} 13... Nd7 {[%clk
0:02:09.5]} 14. Kxg2 {[%clk 0:02:39.8]} 14... Bxc3 {[%clk 0:01:59.1]} 15. bxc3
{[%clk 0:02:38.4]} 15... Rc8 {[%clk 0:01:59.2]} 16. Bh6 {[%clk 0:02:28.1]} 16...
f6 {[%clk 0:01:45.7]} 17. Be3 {[%clk 0:02:10.7]} 17... b6 {[%clk 0:01:42.9]} 18.
a4 {[%clk 0:01:57.4]} 18... Ke8 {[%clk 0:01:04.3]} 19. a5 {[%clk 0:01:56.8]}
19... Rf8 {[%clk 0:00:48.7]} 20. axb6 {[%clk 0:01:53.1]} 20... axb6 {[%clk
0:00:46.2]} 21. f4 {[%clk 0:01:33]} 21... Nc5 {[%clk 0:00:29.2]} 22. Ra7 {[%clk
0:01:26.4]} 22... Rd8 {[%clk 0:00:20.4]} 23. Rxd8+ {[%clk 0:01:23.4]} 23... Kxd8
{[%clk 0:00:20.6]} 24. Ra8+ {[%clk 0:01:23.3]} 1-0

[Event "*** SCC Grand Prix: Titled Tuesday Blitz"]
[Site "Chess.com"]
[Date "2020.07.21"]
[Round "2"]
[White "SaqoChess_Twitch"]
[Black "andy_rekt"]
[Result "0-1"]
[WhiteElo "2420"]
[BlackElo "2228"]
[TimeControl "180+1"]
[EndTime "10:16:11 PDT"]
[Termination "andy_rekt won by checkmate"]

1. d4 {[%clk 0:02:56.9]} 1... e6 {[%clk 0:03:00.3]} 2. c4 {[%clk 0:02:55]} 2...
Nf6 {[%clk 0:03:00.4]} 3. Nc3 {[%clk 0:02:55.5]} 3... Bb4 {[%clk 0:03:00.2]} 4.
a3 {[%clk 0:02:56]} 4... Bxc3+ {[%clk 0:02:58.4]} 5. bxc3 {[%clk 0:02:56.9]}
5... c5 {[%clk 0:02:58.7]} 6. e3 {[%clk 0:02:56.1]} 6... O-O {[%clk 0:02:58.4]}
7. Bd3 {[%clk 0:02:53.1]} 7... d6 {[%clk 0:02:58.5]} 8. Ne2 {[%clk 0:02:51.8]}
8... Nc6 {[%clk 0:02:57.2]} 9. O-O {[%clk 0:02:48.3]} 9... e5 {[%clk 0:02:57.2]}
10. d5 {[%clk 0:02:45.8]} 10... Ne7 {[%clk 0:02:54.7]} 11. Ng3 {[%clk
0:02:42.6]} 11... Re8 {[%clk 0:02:44.6]} 12. f4 {[%clk 0:02:42]} 12... Ng6
{[%clk 0:02:40.5]} 13. f5 {[%clk 0:02:36.8]} 13... Nf8 {[%clk 0:02:34.5]} 14. e4
{[%clk 0:02:37.2]} 14... h6 {[%clk 0:02:32]} 15. Nh5 {[%clk 0:02:35.3]} 15...
N8h7 {[%clk 0:02:26.8]} 16. Nxf6+ {[%clk 0:02:32]} 16... Qxf6 {[%clk 0:02:26.3]}
17. Qe1 {[%clk 0:02:31.1]} 17... Rb8 {[%clk 0:02:16.3]} 18. h4 {[%clk
0:02:28.4]} 18... Bd7 {[%clk 0:02:11.4]} 19. a4 {[%clk 0:02:25.8]} 19... a6
{[%clk 0:02:10.7]} 20. a5 {[%clk 0:02:26]} 20... b5 {[%clk 0:02:08.8]} 21. axb6
{[%clk 0:02:26.9]} 21... Rxb6 {[%clk 0:02:09.2]} 22. g4 {[%clk 0:02:27]} 22...
Reb8 {[%clk 0:02:00.7]} 23. Ra2 {[%clk 0:02:26.5]} 23... g5 {[%clk 0:01:25.4]}
24. fxg6 {[%clk 0:02:18.8]} 24... Qxg6 {[%clk 0:01:25.7]} 25. h5 {[%clk
0:02:14.7]} 25... Qg7 {[%clk 0:01:22.1]} 26. g5 {[%clk 0:02:11]} 26... Nxg5
{[%clk 0:01:20.8]} 27. Rg2 {[%clk 0:02:06.9]} 27... Bh3 {[%clk 0:01:19]} 28. Rg3
{[%clk 0:01:43.1]} 28... Bxf1 {[%clk 0:01:16.6]} 29. Qxf1 {[%clk 0:01:44]} 29...
f6 {[%clk 0:01:16.2]} 30. Qf5 {[%clk 0:01:41.3]} 30... a5 {[%clk 0:01:12.3]} 31.
Bxg5 {[%clk 0:01:39.9]} 31... fxg5 {[%clk 0:01:11.8]} 32. Qe6+ {[%clk 0:01:39]}
32... Kh8 {[%clk 0:01:10.9]} 33. Rf3 {[%clk 0:01:37.9]} 33... Rf8 {[%clk
0:01:07.3]} 34. Rf5 {[%clk 0:01:38]} 34... a4 {[%clk 0:01:02]} 35. Rxf8+ {[%clk
0:01:21.9]} 35... Qxf8 {[%clk 0:01:01.7]} 36. Qd7 {[%clk 0:01:22.8]} 36... Ra6
{[%clk 0:00:53.9]} 37. Be2 {[%clk 0:01:13.7]} 37... a3 {[%clk 0:00:49.3]} 38.
Bg4 {[%clk 0:01:14.6]} 38... a2 {[%clk 0:00:47.5]} 39. Bf5 {[%clk 0:01:15.5]}
39... a1=Q+ {[%clk 0:00:47.7]} 40. Kg2 {[%clk 0:01:13.9]} 40... Ra2+ {[%clk
0:00:48.3]} 41. Kh3 {[%clk 0:01:14.3]} 41... Qh1+ {[%clk 0:00:47.3]} 42. Kg3
{[%clk 0:01:12.7]} 42... Qg2# {[%clk 0:00:46.4]} 0-1